Workbook

Sheet Accueil
A1: Admin (code = ADMN) permet d'accéder aux codes d'ouverture de chaque onglet.
A2: La macro est elle-même protégée pour éviter des accès non autorisés. Code actuel = ADMN

Sheet Admin (hidden)
A1: NOM | B1: CODE ACCES
A2: Admin | B2: ADMN
A3: Trouillard | B3: TRLLRD
A4: Chagneau | B4: CHGN
A5: Pottier | B5: PTTR
A6: Mottais | B6: MTTS
A7: Bouchet | B7: BCHT
A8: Lagarde | B8: LGRD

Sheet Trouillard (hidden)
F1: TROUILLARD Amandine
F2: période du | I2: 2016-06-01 | J2: au | K2: =I2+364 -> 2017-05-31
B4: Date | F4: Nombre de Jours | H4: Heures de Récupération (Jour Férié = 6,37 H)
F5: Pris | G5: Restants | H5: Date | I5: Mobile | J5: Heures Supplémentaires | K5: Heures à Déduires | L5: Cumul
A6: Congés Annuel Principal | B6: Acquis | G6: 20 | I6: Journée de Solidarité 2016 | K6: 0.2916666667 | L6: =J6-K6 -> -0.2916666667
B7: Fermeture CRP Eté | F7: 17 | G7: =G6-F7 -> 3 | H7: 2016-06-01 | I7: Régul Heures Supp. | J7: 0.89375 | L7: =L6+J7-K7 -> 0.6020833333
B8: Fermeture CRP Noël | F8: 2 | G8: =G7-F8 -> 1 | H8: 2016-06-30 | I8: Réunion Secteur | J8: 0.0625 | L8: =L7+J8-K8 -> 0.6645833333
B9: Fermeture CRP Printemps | F9: 1 | G9: =G8-F9 -> 0 | H9: 2016-07-13 | I9: Récupération Heures | K9: 0.03125 | L9: 0.6333333333
G10: =G9-F10 -> 0 | H10: 2016-09-01 | I10: Rentrée Scolaire | K10: 0.04166666667 | L10: 0.5916666667
G11: =G10-F11 -> 0 | H11: 2016-09-08 | I11: Réunion Secteur | J11: 0.08333333333 | L11: 0.675
B12: Congés Annuel Restant a Prendre | F12: =SUM(F7:F11) -> 20 | G12: =G6-F7-F8-F9-F10-F11 -> 0 | H12: 2016-10-03 | I12: Heures Supp. Nouveaux Salariés | J12: 0.125 | L12: 0.8
B13: Sem. Flottante du | C13: 2016-12-26 | D13: au | E13: 2016-12-29 | F13: 4 | G13: =4-F13 -> 0 | H13: 2016-10-04 | I13: Heures Supp. Formation Collective | J13: 0.1458333333 | L13: 0.9458333333
A14: Jours de Fractionnement | B14: Acquis | G14: 1 | H14: 2016-10-31 | I14: Récupération Heures | K14: 0.3506944444 | L14: 0.5951388889
B15: 2016-12-12 | F15: 1 | G15: =G14-F15 -> 0 | H15: 2016-11-10 | I15: Journée Institutionnelle | J15: 0.08333333333 | L15: 0.6784722222
H16: S.50 | I16: Repas Noël | J16: 0.08333333333 | L16: 0.7618055556
H17: 2017-01-11 | I17: Heures Supplémentaires | J17: 0.04166666667 | L17: 0.8034722222
B18: Fractionnement Restant à Prendre | G18: =G14-F15-F16-F17 -> 0 | H18: 2017-03-15 | I18: Réunion Secteur | J18: 0.03125 | L18: 0.8347222222
A19: Autres Congés | H19: 2017-04-07 | I19: Journée Institutionnelle | J19: 0.3125 | L19: 1.147222222
A20: Pris | B20: Evènement | G20: Nb | H20: S.15 | I20: Fermeture Avril | K20: 1.030555556 | L20: 0.1166666667
A21: 5 | B21: Mariage | G21: 06/06>10/06 | H21: 2017-05-08 | I21: Jour Férié | J21: 0.2756944444 | L21: 0.3923611111
A22: 2 | B22: Evènement Familial | G22: 08/12>0912 | H22: 2017-05-26 | I22: Heures Récup. Pont Ascension | K22: 0.3125 | L22: 0.07986111111
A28: Jours Maladie
A29: Date | F29: Nb Jours | G29: Cumul
A30: Du | C30: au | F30: =D30-B30 -> 0 | G30: =F30 -> 0
A31: Du | C31: au | G31: =G30+F31 -> 0
A32: Du | C32: au
A33: Du | C33: au
A34: Du | C34: au
A35: Du | C35: au

Sheet Chagneau (hidden)
F1: CHAGNEAU Anne
F2: période du | I2: =Trouillard!I2 -> 2016-06-01 | J2: =Trouillard!J2 -> au | K2: =Trouillard!K2 -> 2017-05-31
B4: Date | F4: Nombre de Jours | H4: Heures de Récupération (Jour Férié = 6,37 H)
F5: Pris | G5: Restants | H5: Date | I5: Mobile | J5: Heures Supplémentaires | K5: Heures à Déduires | L5: Cumul
A6: Congés Annuel Principal | B6: Acquis | G6: 13 | I6: Journée de Solidarité 2016 | K6: 0.2916666667 | L6: =J6-K6 -> -0.2916666667
B7: =Trouillard!B7 -> Fermeture CRP Eté | F7: 13 | G7: =G6-F7 -> 0 | H7: 2016-06-01 | I7: Régul Heures Supp. | J7: 0.3541666667 | L7: =L6+J7-K7 -> 0.0625
B8: =Trouillard!B8 -> Fermeture CRP Noël | G8: =G7-F8 -> 0 | H8: 2016-06-30 | I8: Réunion Secteur | J8: 0.02083333333 | L8: =L7+J8-K8 -> 0.08333333333
B9: Fermeture CRP Printemps | G9: =G8-F9 -> 0 | H9: 2016-07-28 | I9: Journée Barbecue | J9: 0.05208333333 | L9: 0.1354166667
G10: =G9-F10 -> 0 | H10: 2016-08-24 | I10: Heures Supplémentaires Rempl. SST | J10: 0.02083333333 | L10: 0.15625
G11: =G10-F11 -> 0 | H11: 2016-09-01 | I11: Rentrée Scolaire | J11: 0.02083333333 | L11: 0.1770833333
B12: Congés Annuel Restant a Prendre | F12: =SUM(F7:F11) -> 13 | G12: =G6-F7-F8-F9-F10-F11 -> 0 | H12: 2016-09-08 | I12: Réunion Secteur | J12: 0.03125 | L12: 0.2083333333
B13: Sem. Flottante du | C13: 2016-12-26 | D13: au | F13: 2 | G13: =2-F13 -> 0 | H13: 2016-11-11 | I13: Jour Férié | J13: 0.2756944444 | L13: 0.4840277778
A14: Jours de Fractionnement | B14: Acquis | H14: S. 49 | I14: Remplacement Heures Supp. | J14: 0.08333333333 | L14: 0.5673611111
H15: 2016-12-09 | I15: Rempl. Amandine Trouillard | J15: 0.3472222222 | L15: 0.9145833333
H16: 2016-12-12 | I16: Rempl. Amandine Trouillard | J16: 0.3506944444 | L16: 1.265277778
H17: 2017-01-05 | I17: Heures Supplémentaires | J17: 0.04166666667 | L17: 1.306944444
B18: Fractionnement Restant à Prendre | G18: =G14-F15-F16-F17 -> 0 | H18: S. 04 | I18: Repas CA | J18: 0.3333333333 | L18: 1.640277778
A19: Autres Congés | H19: 2017-02-21 | I19: Récupération Heures | K19: 0.3368055556 | L19: 1.303472222
A20: Pris | B20: Evènement | G20: Nb | H20: S. 7 | I20: Heures Supp. Remp. Pottier Emmanuelle | J20: 0.08333333333 | L20: 1.386805556
H21: 2017-03-02 | I21: Rempl. Anthony Bouchet | J21: 0.03125 | L21: 1.418055556
H22: 2017-03-15 | I22: Rempl. Anthony Bouchet | J22: 0.04166666667 | L22: 1.459722222
H23: 2017-03-16 | I23: Réunion Secteur | J23: 0.08333333333 | L23: 1.543055556
H24: S. 15 | I24: Fermeture Avril | K24: 1.38125 | L24: 0.1618055556
H25: 2017-04-07 | I25: Récupération Heures | K25: 0.03472222222 | L25: =L24+J25-K25 -> 0.1270833333
H26: 2017-04-18 | I26: Récupération Heures | K26: 0.03472222222 | L26: =L25+J26-K26 -> 0.09236111111
H27: 2017-04-17 | I27: Jour Férié | J27: 0.2756944444 | L27: =L26+J27-K27 -> 0.3680555556
A28: Jours Maladie | H28: 2017-05-01 | I28: Jour Férié | J28: 0.2756944444 | L28: =L27+J28-K28 -> 0.64375
A29: Date | F29: Nb Jours | G29: Cumul
A30: Du | C30: au | F30: =D30-B30 -> 0 | G30: =F30 -> 0
A31: Du | C31: au | G31: =G30+F31 -> 0
A32: Du | C32: au
A33: Du | C33: au
A34: Du | C34: au
A35: Du | C35: au

Sheet Pottier (hidden)
F1: POTTIER Emmanuelle
F2: période du | I2: =Trouillard!I2 -> 2016-06-01 | J2: =Trouillard!J2 -> au | K2: =Trouillard!K2 -> 2017-05-31
B4: Date | F4: Nombre de Jours | H4: Heures de Récupération (Jour Férié = 6,37 H)
F5: Pris | G5: Restants | H5: Date | I5: Mobile | J5: Heures Supplémentaires | K5: Heures à Déduires | L5: Cumul
A6: Congés Annuel Principal | B6: Acquis | G6: 30 | H6: 2016-09-21 | I6: Journée de Solidarité 2016 | J6: 0.3333333333 | K6: 0.2916666667 | L6: =J6-K6 -> 0.04166666667
B7: =Trouillard!B7 -> Fermeture CRP Eté | F7: 17 | G7: =G6-F7 -> 13 | H7: 2016-06-01 | I7: Régul Heures Supp. | J7: 0.01388888889 | L7: =L6+J7-K7 -> 0.05555555556
B8: =Trouillard!B8 -> Fermeture CRP Noël | F8: 7 | G8: =G7-F8 -> 6 | H8: 2016-07-15 | I8: Récupération Heures | K8: 0.3125 | L8: -0.2569444444
B9: Fermeture CRP Printemps | F9: 6 | G9: =G8-F9 -> 0 | H9: 2016-07-27 | I9: Heures Supplémentaires | J9: 0.35625 | L9: 0.09930555556
G10: =G9-F10 -> 0 | H10: 2016-07-05 | I10: Récupération Heures | K10: 0.0625 | L10: 0.03680555556
G11: =G10-F11 -> 0 | H11: 2016-08-24 | I11: Heures Supplémentaires Remp. SST | J11: 0.2916666667 | L11: 0.3284722222
B12: Congés Annuel Restant a Prendre | F12: =SUM(F7:F11) -> 30 | G12: =G6-F7-F8-F9-F10-F11 -> 0 | H12: 2016-08-25 | I12: Petit Déjeuner | J12: 0.01388888889 | L12: 0.3423611111
B13: Sem. Flottante du | C13: 2016-10-24 | D13: au | E13: 2016-10-29 | F13: 7 | G13: =7-F13 -> 0 | H13: 2016-09-01 | I13: Rentrée Scolaire | K13: 0.01041666667 | L13: 0.3319444444
A14: Jours de Fractionnement | B14: Acquis | G14: 3 | H14: 2016-10-06 | I14: Petit Déjeuner | J14: 0.03472222222 | L14: 0.3666666667
B15: 2016-12-06 | F15: 1 | G15: =G14-F15 -> 2 | H15: 2016-10-31 | I15: Récupération Heures | K15: 0.35625 | L15: 0.01041666667
B16: 2017-03-20 | F16: 1 | G16: =G15-F16 -> 1 | H16: 2016-11-10 | I16: Journée Institutionnelle | J16: 0.02083333333 | L16: 0.03125
B17: 2017-03-21 | F17: 1 | G17: =G16-F17 -> 0 | H17: 2016-12-01 | I17: Heures Supp. Réunion Secteur | J17: 0.02083333333 | L17: 0.05208333333
B18: Fractionnement Restant à Prendre | G18: =G14-F15-F16-F17 -> 0 | H18: S.50 | I18: Repas Noël | J18: 0.3333333333 | L18: 0.3854166667
A19: Autres Congés | H19: 2016-12-25 | I19: Jour Férié | J19: 0.2756944444 | L19: 0.6611111111
A20: Pris | B20: Evènement | G20: Nb | H20: 2017-01-01 | I20: Jour Férié | J20: 0.2756944444 | L20: 0.9368055556
A21: 2 | B21: Jours "Enfants Malade" | F21: 05/01; 06/01 | H21: S. 04 | I21: Repas CA | J21: 0.5833333333 | L21: 1.520138889
H22: S. 07 | I22: Récupération Heures | K22: 1.38125 | L22: 0.1388888889
H23: S.06 | I23: Petit Déjeuner | J23: 0.03472222222 | L23: 0.1736111111
H24: 2017-05-26 | I24: Heures Récup. Pont Ascension | K24: 0.3125 | L24: -0.1388888889
A28: Jours Maladie
A29: Date | F29: Nb Jours | G29: Cumul
A30: Du | C30: au | F30: =D30-B30 -> 0 | G30: =F30 -> 0
A31: Du | C31: au | G31: =G30+F31 -> 0
A32: Du | C32: au
A33: Du | C33: au
A34: Du | C34: au
A35: Du | C35: au

Sheet Mottais (hidden)
F1: MOTTAIS Franck
F2: période du | I2: =Trouillard!I2 -> 2016-06-01 | J2: =Trouillard!J2 -> au | K2: =Trouillard!K2 -> 2017-05-31
B4: Date | F4: Nombre de Jours | H4: Heures de Récupération (Jour Férié = 6,37 H)
F5: Pris | G5: Restants | H5: Date | I5: Mobile | J5: Heures Supplémentaires | K5: Heures à Déduires | L5: Cumul
A6: Congés Annuel Principal | B6: Acquis | G6: 30 | I6: Journée de Solidarité 2016 (En RTT Ce Jour) | J6: 0.2756944444 | K6: 0.2916666667 | L6: =J6-K6 -> -0.01597222222
B7: =Trouillard!B7 -> Fermeture CRP Eté | F7: 17 | G7: =G6-F7 -> 13 | H7: 2016-06-01 | I7: Régul Heures Supp. | J7: 1.225694444 | L7: =L6+J7-K7 -> 1.209722222
B8: =Trouillard!B8 -> Fermeture CRP Noël | F8: 6 | G8: =G7-F8 -> 7 | H8: 2016-07-01 | I8: Récupération Heures | K8: 0.3125 | L8: 0.8972222222
B9: Fermeture CRP Printemps | F9: 6 | G9: =G8-F9 -> 1 | H9: 2016-06-30 | I9: Réunion Secteur | J9: 0.02083333333 | L9: 0.9180555556
B10: 2017-04-27 | F10: 1 | G10: =G9-F10 -> 0 | H10: 2016-07-27 | I10: Préparation Barbecue | J10: 0.3541666667 | L10: 1.272222222
G11: =G10-F11 -> 0 | H11: 2016-08-25 | I11: Heures Suppl. Remp. SST | J11: 0.04166666667 | L11: 1.313888889
B12: Congés Annuel Restant a Prendre | F12: =SUM(F7:F11) -> 30 | G12: =G6-F7-F8-F9-F10-F11 -> 0 | H12: 2016-09-09 | I12: Récupération Heures | K12: 0.3125 | L12: 1.001388889
B13: Sem. Flottante du | C13: 2016-11-21 | D13: au | E13: 2016-11-27 | F13: 7 | G13: =7-F13 -> 0 | H13: 2016-09-01 | I13: Rentrée Scolaire | J13: 0.01736111111 | L13: 1.01875
A14: Jours de Fractionnement | B14: Acquis | G14: 3 | H14: 2016-10-04 | I14: Heures Supp. Formation Collective | J14: 0.1666666667 | L14: 1.185416667
B15: 2017-02-23 | F15: 1 | G15: =G14-F15 -> 2 | H15: 2016-11-28 | I15: Récupération Heures | K15: 0.3527777778 | L15: 0.8326388889
B16: 2017-02-24 | F16: 1 | G16: =G15-F16 -> 1 | H16: 2016-11-24 | I16: Heures Suppl. | J16: 0.02083333333 | L16: 0.8534722222
B17: 2017-02-25 | F17: 1 | G17: =G16-F17 -> 0 | H17: 2016-11-10 | I17: Journée Institutionnelle | J17: 0.04166666667 | L17: 0.8951388889
B18: Fractionnement Restant à Prendre | G18: =G14-F15-F16-F17 -> 0 | H18: 2016-12-01 | I18: Heures Supp. Réunion Secteur | J18: 0.02083333333 | L18: 0.9159722222
A19: Autres Congés | H19: 2016-12-12 | I19: Remp. Grégory Lagarde | J19: 0.3527777778 | L19: 1.26875
A20: Pris | B20: Evènement | G20: Nb | H20: 2016-12-25 | I20: Jour Férié | J20: 0.2756944444 | L20: 1.544444444
H21: 2017-01-01 | I21: Jour Férié | J21: 0.2756944444 | L21: 1.820138889
H22: 2017-01-31 | I22: Heures Supp. Pt Déjeuner | J22: 0.01736111111 | L22: 1.8375
H23: 2017-02-21 | I23: Heures Supp. Pt Déjeuner | J23: 0.01736111111 | L23: 1.854861111
H24: 2017-03-06 | I24: Rempl. Anthony Bouchet | J24: 0.3527777778 | L24: 2.207638889
H25: 2017-03-14 | I25: Pt Déjeuner | J25: 0.01736111111 | L25: 2.225
H26: 2017-03-16 | I26: Réunion Secteur | J26: 0.02083333333 | L26: 2.245833333
H27: 2017-03-20 | I27: Heures Supp. Rempl. Emmanuelle Pottier | J27: 0.04166666667 | L27: 2.2875
A28: Jours Maladie | H28: 2017-04-28 | I28: Récupération Heures | K28: 0.3125 | L28: 1.975
A29: Date | F29: Nb Jours | G29: Cumul | H29: 2017-04-17 | I29: Jour Férié | J29: 0.2756944444 | L29: =L28+J29-K29 -> 2.250694444
A30: Du | C30: au | F30: =D30-B30 -> 0 | G30: =F30 -> 0 | H30: 2017-05-01 | I30: Jour Férié | J30: 0.2756944444 | L30: =L29+J30-K30 -> 2.526388889
A31: Du | C31: au | G31: =G30+F31 -> 0
A32: Du | C32: au
A33: Du | C33: au
A34: Du | C34: au
A35: Du | C35: au

Sheet Bouchet (hidden)
F1: BOUCHET Anthony
F2: période du | I2: =Trouillard!I2 -> 2016-06-01 | J2: =Trouillard!J2 -> au | K2: =Trouillard!K2 -> 2017-05-31
B4: Date | F4: Nombre de Jours | H4: Heures de Récupération (Jour Férié = 6,37 H)
F5: Pris | G5: Restants | H5: Date | I5: Mobile | J5: Heures Supplémentaires | K5: Heures à Déduires | L5: Cumul
A6: Congés Annuel Principal | B6: Acquis | G6: 30 | I6: Journée de Solidarité 2016 | K6: 0.2916666667 | L6: =J6-K6 -> -0.2916666667
B7: =Trouillard!B7 -> Fermeture CRP Eté | F7: 17 | G7: =G6-F7 -> 13 | H7: S. 22 | I7: Récupération Heures 33h09 (Comptabilisé en 2015-2016) | L7: =L6+J7-K7 -> -0.2916666667
B8: =Trouillard!B8 -> Fermeture CRP Noël | F8: 7 | G8: =G7-F8 -> 6 | H8: 2016-06-01 | I8: Régul Heures Supp. | J8: 0.6951388889 | L8: 0.4034722222
B9: Fermeture CRP Printemps | F9: 6 | G9: =G8-F9 -> 0 | H9: 2016-07-15 | I9: Récupération Heures | K9: 0.3125 | L9: 0.09097222222
G10: =G9-F10 -> 0 | H10: 2016-06-30 | I10: Réunion Secteur | J10: 0.02083333333 | L10: 0.1118055556
G11: =G10-F11 -> 0 | H11: 2016-09-01 | I11: Rentrée Scolaire | J11: 0.02083333333 | L11: 0.1326388889
B12: Congés Annuel Restant a Prendre | F12: =SUM(F7:F11) -> 30 | G12: =G6-F7-F8-F9-F10-F11 -> 0 | H12: 2016-07-27 | I12: Remp. Grégory Lagarde (1/2 Journée Enfant Malade) | J12: 0.0625 | L12: 0.1951388889
B13: Sem. Flottante du | C13: 2017-04-17 | D13: au | E13: 2017-04-24 | F13: 7 | G13: =7-F13 -> 0 | H13: 2016-10-03 | I13: Remp. Amandine Trouillard | J13: 0.3541666667 | L13: 0.5493055556
A14: Jours de Fractionnement | B14: Acquis | G14: 3 | H14: 2016-10-07 | I14: Petit Déjeuner | J14: 0.03472222222 | L14: =L13+J14-K14 -> 0.5840277778
G15: =G14-F15 -> 3 | H15: 2016-10-31 | I15: Récupération Heures | K15: 0.35 | L15: 0.2340277778
G16: =G15-F16 -> 3 | H16: 2016-11-10 | I16: Journée Institutionnelle | J16: 0.04166666667 | L16: 0.2756944444
G17: =G16-F17 -> 3 | H17: 2016-12-01 | I17: Heures Supp. Réunion Secteur | J17: 0.02083333333 | L17: 0.2965277778
B18: Fractionnement Restant à Prendre | G18: =G14-F15-F16-F17 -> 3 | H18: 2017-01-11 | I18: Heures Supp. | J18: 0.02083333333 | L18: 0.3173611111
A19: Autres Congés | H19: 2017-03-09 | I19: Heures Supp. Réunion Qualité | J19: 0.0625 | L19: 0.3798611111
A20: Pris | B20: Evènement | G20: Nb | H20: 2017-05-08 | I20: Jour Férié | J20: 0.2756944444 | L20: 0.6555555556
H21: 2017-05-26 | I21: Heures Récup. Pont Ascension | K21: 0.3125 | L21: 0.3430555556
A28: Jours Maladie
A29: Date | F29: Nb Jours | G29: Cumul
A30: Du | C30: au | F30: =D30-B30 -> 0 | G30: =F30 -> 0
A31: Du | C31: au | G31: =G30+F31 -> 0
A32: Du | C32: au
A33: Du | C33: au
A34: Du | C34: au
A35: Du | C35: au

Sheet Lagarde (hidden)
F1: LAGARDE Grégory
F2: période du | I2: =Trouillard!I2 -> 2016-06-01 | J2: =Trouillard!J2 -> au | K2: =Trouillard!K2 -> 2017-05-31
B4: Date | F4: Nombre de Jours | H4: Heures de Récupération (Jour Férié = 6,37 H)
F5: Pris | G5: Restants | H5: Date | I5: Mobile | J5: Heures Supplémentaires | K5: Heures à Déduires | L5: Cumul
A6: Congés Annuel Principal | B6: Acquis | G6: 30 | I6: Journée de Solidarité 2016 (Cumul Heures Soir) | J6: 0.2916666667 | K6: 0.2916666667 | L6: =J6-K6 -> 0
B7: =Trouillard!B7 -> Fermeture CRP Eté | F7: 17 | G7: =G6-F7 -> 13 | H7: 2016-06-01 | I7: Régul Heures Supp. | J7: 0.6715277778 | L7: =L6+J7-K7 -> 0.6715277778
B8: =Trouillard!B8 -> Fermeture CRP Noël | F8: 7 | G8: =G7-F8 -> 6 | H8: 2016-07-15 | I8: Récupération Heures | K8: 0.3125 | L8: 0.3590277778
B9: Fermeture CRP Printemps | F9: 6 | G9: =G8-F9 -> 0 | H9: 2016-06-07 | I9: Réunion Barbecue | J9: 0.04166666667 | L9: 0.4006944444
G10: =G9-F10 -> 0 | H10: 2016-06-16 | I10: Pot Dr Ganjar / Nadia Ménager | J10: 0.04166666667 | L10: 0.4423611111
G11: =G10-F11 -> 0 | H11: S. 26 | I11: Heures Supp. Réunion Secteur + Courses | J11: 0.125 | L11: 0.5673611111
B12: Congés Annuel Restant a Prendre | F12: =SUM(F7:F11) -> 30 | G12: =G6-F7-F8-F9-F10-F11 -> 0 | H12: 2016-07-28 | I12: Journée Barbecue | J12: 0.0625 | L12: 0.6298611111
B13: Sem. Flottante du | C13: 2016-07-04 | D13: au | E13: 2016-07-08 | F13: 7 | G13: =7-F13 -> 0 | H13: 2016-08-24 | I13: Heures Supplémentaires Remp. SST | J13: 0.3541666667 | L13: 0.9840277778
A14: Jours de Fractionnement | B14: Acquis | G14: 3 | H14: 2016-09-01 | I14: Rentrée Scolaire | K14: 0.04166666667 | L14: 0.9423611111
B15: 2016-01-19 | F15: 1 | G15: =G14-F15 -> 2 | H15: 2016-09-08 | I15: Réunion Secteur | J15: 0.09375 | L15: 1.036111111
B16: 2016-01-20 | F16: 1 | G16: =G15-F16 -> 1 | H16: 2016-10-31 | I16: Récupération Heures | K16: 0.3527777778 | L16: 0.6833333333
B17: 2016-01-21 | F17: 1 | G17: =G16-F17 -> 0 | H17: S. 42 | I17: Heures Supp. MPS + Base Doc | J17: 0.08333333333 | L17: 0.7666666667
B18: Fractionnement Restant à Prendre | G18: =G14-F15-F16-F17 -> 0 | H18: 2016-11-04 | I18: Récupération Heures | K18: 0.3125 | L18: 0.4541666667
A19: Autres Congés | H19: 2016-11-10 | I19: Journée Institutionnelle | J19: 0.02083333333 | L19: 0.475
A20: Pris | B20: Evènement | F20: Date | H20: 2016-11-11 | I20: Jour Férié | J20: 0.2756944444 | L20: 0.7506944444
A21: 1 | B21: Jour Enfant Malade | F21: 2016-12-12 | H21: S.48 | I21: Réunions MPS + Réunion Secteur | J21: 0.25 | L21: 1.000694444
A22: 5 | B22: PACS | F22: 09/01/16 > 13/01/16 | H22: S.50 | I22: Repas Noël | J22: 0.3333333333 | L22: 1.334027778
H23: 2017-01-05 | I23: Galette | J23: 0.04166666667 | L23: 1.375694444
H24: S. 04 | I24: Repas CA | J24: 0.7083333333 | L24: 2.084027778
H25: 2017-03-01 | I25: Rempl. Anthony Bouchet | J25: 0.3527777778 | L25: 2.436805556
H26: 2017-03-07 | I26: Réunions MPS | J26: 0.02083333333 | L26: 2.457638889
H27: 2017-03-15 | I27: Rempl. Anthony Bouchet | J27: 0.03125 | L27: 2.488888889
A28: Jours Maladie | H28: 2017-03-16 | I28: Réunion Secteur | J28: 0.09722222222 | L28: 2.586111111
A29: Date | F29: Nb Jours | G29: Cumul | H29: 2017-04-03 | I29: Réunions MPS | J29: 0.0625 | L29: 2.648611111
A30: Du | C30: au | F30: =D30-B30 -> 0 | G30: =F30 -> 0 | H30: 2017-04-06 | I30: Récupération Heures | K30: 0.08333333333 | L30: 2.565277778
A31: Du | C31: au | G31: =G30+F31 -> 0 | H31: 2017-04-07 | I31: Journée Institutionnelle | J31: 0.3125 | L31: 2.877777778
A32: Du | C32: au | H32: 2017-04-24 | I32: Réunions MPS | J32: 0.04166666667 | L32: =L31+J32-K32 -> 2.919444444
A33: Du | C33: au | H33: 2017-05-26 | I33: Heures Récup. Pont Ascension | K33: 0.3125 | L33: =L32+J33-K33 -> 2.606944444
A34: Du | C34: au
A35: Du | C35: au

Sheet DroitsUser (hidden)
A1: User | B1: Mot De Passe | C1: Feuille Autorisée
A2: Amandine | B2: cedric2016 | C2: "Trouillard"
A3: Anne | B3: sable2017 | C3: "Chagneau"
A4: Emmanuelle | B4: mariejules | C4: "Pottier"
A5: Franck | B5: coco2015 | C5: "Mottais"
A6: Anthony | B6: ferce2017 | C6: "Bouchet"
A7: Grégory | B7: jelogre72 | C7: "Trouillard"
A8: Grégory | B8: jelogre72 | C8: "Chagneau"
A9: Grégory | B9: jelogre72 | C9: "Pottier"
A10: Grégory | B10: jelogre72 | C10: "Mottais"
A11: Grégory | B11: jelogre72 | C11: "Bouchet"
A12: Grégory | B12: jelogre72 | C12: "Lagarde"
